bitfinex/quotes_BTCUSD_20250529
["timestamp","ask_amount","ask_price","bid_price","bid_amount"]
[1748536266611,0.01870451,106920.0,106910.0,0.99879173]
[1748536266828,0.02019626,106920.0,106910.0,1.00579173]
[1748536267267,0.01084392,106920.0,106910.0,1.00579173]
[1748536267512,0.01084392,106920.0,106910.0,1.40579173]
[1748536267728,0.00149175,106920.0,106910.0,3.48554349]
[1748536267948,0.00149175,106920.0,106910.0,3.06633649]
[1748536268176,0.00149175,106920.0,106910.0,4.40750249]
[1748536268627,0.00149175,106920.0,106910.0,4.10134949]
[1748536268900,0.00149175,106920.0,106910.0,4.09100349]
[1748536269123,0.00149175,106920.0,106910.0,4.47198149]
[1748536269778,0.22442455,106940.0,106930.0,0.22963367]
[1748536269779,0.18591595,106940.0,106930.0,0.22963367]
[1748536269987,0.1952669,106940.0,106930.0,0.60889733]
[1748536270241,0.18591595,106940.0,106930.0,0.6182488]
[1748536270470,0.20575256,106950.0,106940.0,0.18702075]
[1748536270708,0.20575256,106950.0,106940.0,0.19637178]
[1748536270928,0.00934955,106950.0,106940.0,0.36141863]
[1748536271153,0.01869927,106950.0,106940.0,0.36441018]
[1748536271853,0.01869927,106950.0,106940.0,0.36641018]
[1748536272085,0.02804908,106950.0,106940.0,1.00296387]
[1748536272316,0.165684,106960.0,106950.0,0.19635325]
[1748536272544,0.0093485,106960.0,106950.0,1.28671247]
[1748536272771,0.21503188,106960.0,106950.0,1.28671282]
[1748536272991,0.22438108,106960.0,106950.0,1.28671282]
[1748536273222,0.23372967,106960.0,106950.0,1.28671291]
[1748536273677,0.23372967,106960.0,106950.0,1.28771291]
[1748536273917,0.23372967,106960.0,106950.0,1.29706254]
[1748536274153,0.23372967,106960.0,106950.0,0.6585173]
[1748536274372,0.02804576,106960.0,106950.0,1.07085791]
[1748536274582,0.04674354,106960.0,106950.0,1.07085791]
[1748536274795,0.04674337,106960.0,106950.0,1.07085791]
[1748536275010,0.04674389,106960.0,106950.0,1.07085791]
[1748536275348,0.03739487,106960.0,106950.0,1.07085791]
[1748536275385,0.20566468,106970.0,106960.0,0.19633498]
[1748536275812,0.20566468,106970.0,106960.0,0.21503293]
[1748536276029,0.20566468,106970.0,106960.0,0.205684]
[1748536276206,0.20566468,106970.0,106960.0,0.19633498]
[1748536276413,0.21501309,106970.0,106960.0,0.31127889]
[1748536276629,0.21601309,106970.0,106960.0,0.30192986]
[1748536276824,0.21601309,106970.0,106960.0,0.1055948]
[1748536277037,0.19633489,106960.0,106950.0,0.60561403]
[1748536277240,0.21503302,106960.0,106950.0,1.01802976]
[1748536277440,0.21503302,106960.0,106950.0,1.01802985]
[1748536277657,0.21503302,106960.0,106950.0,1.00867995]
[1748536277876,0.21503302,106960.0,106950.0,0.99945917]
[1748536278083,0.21503302,106960.0,106950.0,1.00980907]
[1748536278501,0.21503302,106960.0,106950.0,1.01915889]
[1748536278716,0.21503302,106960.0,106950.0,1.00980908]
[1748536278918,0.21503302,106960.0,106950.0,1.01915889]
[1748536279116,0.00934859,106960.0,106950.0,1.02850844]
[1748536279337,0.0093485,106960.0,106950.0,1.04995802]
[1748536280219,0.01869717,106960.0,106950.0,1.08235802]
[1748536280599,0.03739495,106960.0,106950.0,1.04995802]
[1748536280858,0.0093485,106960.0,106950.0,1.05908868]
[1748536281112,0.01869717,106960.0,106950.0,1.05908868]
[1748536282148,0.02804602,106960.0,106950.0,1.05908868]
[1748536282422,0.0093485,106960.0,106950.0,1.05908868]
[1748536282693,0.02804602,106960.0,106950.0,1.05908868]
[1748536282986,0.20566468,106970.0,106960.0,0.22022459]
[1748536283247,0.20566468,106970.0,106960.0,0.61506747]
[1748536283567,0.20566468,106970.0,106960.0,0.60571871]
[1748536283747,0.20566468,106970.0,106960.0,0.58702058]
[1748536283949,0.20566468,106970.0,106960.0,0.59636969]
[1748536284155,0.20666468,106970.0,106960.0,0.59636969]
[1748536284364,0.20666468,106970.0,106960.0,0.60571871]
[1748536284792,0.20766468,106970.0,106960.0,0.59636969]
[1748536285415,0.20766468,106970.0,106960.0,0.60571854]
[1748536285634,0.20766468,106970.0,106960.0,0.60571871]
[1748536286280,0.20766468,106970.0,106960.0,0.61506756]
[1748536286489,0.21701309,106970.0,106960.0,0.59636969]
[1748536286698,0.21701309,106970.0,106960.0,0.60571871]
[1748536286906,0.20766468,106970.0,106960.0,0.61506756]
[1748536287128,0.20766468,106970.0,106960.0,0.62441632]
[1748536287333,0.20766468,106970.0,106960.0,0.61506756]
[1748536287543,0.20766468,106970.0,106960.0,0.62441632]
[1748536287761,0.21701231,106970.0,106960.0,0.61506756]
[1748536288004,0.22636072,106970.0,106960.0,0.60571871]
[1748536288665,0.21701292,106970.0,106960.0,0.59636978]
[1748536288882,0.21701292,106970.0,106960.0,0.60571889]
[1748536289110,0.21701292,106970.0,106960.0,0.1055948]
[1748536289341,0.19633498,106960.0,106950.0,0.61487162]
[1748536289557,0.23668374,106960.0,106950.0,1.02720736]
[1748536289984,0.25538143,106960.0,106950.0,1.02720736]
[1748536290191,0.22438143,106960.0,106950.0,1.03655717]
[1748536290654,0.22438143,106960.0,106950.0,1.02720736]
[1748536290875,0.22438143,106960.0,106950.0,1.0180767]
[1748536291116,0.359664,106960.0,106950.0,0.00104]
[1748536291345,0.359664,106960.0,106950.0,0.2954]
[1748536291560,0.36887054,106960.0,106950.0,0.2954]
[1748536292463,0.36887054,106960.0,106950.0,0.00104]
[1748536292676,0.36887054,106960.0,106950.0,0.2954]
[1748536293335,0.359664,106960.0,106950.0,0.2954]
[1748536295096,0.329164,106960.0,106950.0,0.2954]
[1748536295324,0.362164,106960.0,106950.0,0.2954]
[1748536295542,0.362164,106960.0,106950.0,0.00104]
[1748536295785,0.362164,106960.0,106950.0,0.2954]
[1748536296263,0.79321795,106960.0,106950.0,0.00104]
[1748536297403,0.79321795,106960.0,106950.0,4e-05]
[1748536297620,0.70273795,106960.0,106950.0,4e-05]
[1748536297835,0.79521795,106960.0,106950.0,4e-05]
[1748536298048,0.79921795,106960.0,106950.0,4e-05]
[1748536298949,0.79721795,106960.0,106950.0,4e-05]
[1748536299196,0.26812221,106940.0,106930.0,4.921e-05]
[1748536299420,1.19553616,106940.0,106930.0,4.921e-05]
[1748536300565,1.19653616,106940.0,106930.0,4.921e-05]
[1748536300836,1.19753616,106940.0,106930.0,4.921e-05]
[1748536301030,1.19653616,106940.0,106930.0,4.921e-05]
[1748536301508,1.19953616,106940.0,106930.0,4.921e-05]
[1748536301735,0.26807993,106910.0,106900.0,0.36927476]
[1748536301963,0.45161388,106910.0,106900.0,0.00056671]
[1748536302191,0.79161388,106910.0,106900.0,0.00056671]
[1748536303095,0.79261388,106910.0,106900.0,0.00456671]
[1748536303554,0.79161388,106910.0,106900.0,0.00056671]
[1748536303784,0.79261388,106910.0,106900.0,0.00556671]
[1748536304009,0.79261388,106910.0,106900.0,0.00056671]
[1748536304456,0.79361388,106910.0,106900.0,0.00056671]
[1748536304957,0.20585695,106870.0,106860.0,0.0748398]
[1748536305181,0.32987695,106870.0,106860.0,0.3692798]
[1748536305845,0.29837695,106870.0,106860.0,0.3692798]
[1748536306301,0.29937695,106870.0,106860.0,0.37332901]
[1748536307176,0.29477695,106870.0,106860.0,0.37332901]
[1748536307407,0.29477695,106870.0,106860.0,0.37732901]
[1748536308087,0.29477695,106870.0,106860.0,0.30248921]
[1748536312847,0.20225695,106870.0,106860.0,0.52950784]
[1748536313074,0.20225695,106870.0,106860.0,0.67646041]
[1748536313295,0.21161402,106870.0,106860.0,0.6951756]
[1748536313512,0.21161402,106870.0,106860.0,0.70453302]
[1748536313513,0.20225695,106870.0,106860.0,0.70453302]
[1748536313747,0.20225695,106870.0,106860.0,0.68581809]
[1748536314215,0.001,106870.0,106860.0,1.69286674]
[1748536314430,0.001,106870.0,106860.0,1.43091974]
[1748536314647,0.01035646,106870.0,106860.0,0.70453311]
[1748536315552,0.001,106870.0,106860.0,0.70453311]
[1748536316034,0.01035646,106870.0,106860.0,0.70453311]
[1748536316532,0.01971301,106870.0,106860.0,0.70453311]
[1748536316764,0.01035646,106870.0,106860.0,0.70453311]
[1748536316982,0.01035646,106870.0,106860.0,1.10453311]
[1748536317212,0.001,106870.0,106860.0,1.10453311]
[1748536318555,0.01035637,106870.0,106860.0,1.10453311]
[1748536318783,0.001,106870.0,106860.0,1.10453311]
[1748536319002,0.001,106870.0,106860.0,1.44453311]
[1748536321292,0.18712585,106880.0,106870.0,0.22975453]
[1748536321521,0.00935567,106880.0,106870.0,0.38200848]
[1748536322024,0.21519336,106880.0,106870.0,0.38200848]
[1748536322271,0.01871134,106880.0,106870.0,0.38200848]
[1748536322495,0.01871134,106880.0,106870.0,0.38400848]
[1748536322924,0.20584876,106890.0,106880.0,0.25157872]
[1748536323137,0.19649362,106890.0,106880.0,0.4312348]
[1748536323377,0.18713821,106890.0,106880.0,0.1367948]
[1748536323601,0.20583787,106880.0,106870.0,0.04974085]
[1748536323809,0.20583787,106880.0,106870.0,0.32593805]
[1748536324012,0.20583787,106880.0,106870.0,1.01837805]
[1748536324221,0.20583787,106880.0,106870.0,1.02773512]
[1748536324441,0.00935549,106880.0,106870.0,0.6558052]
[1748536324659,0.01871116,106880.0,106870.0,0.6858052]
[1748536325092,0.02806709,106880.0,106870.0,0.6858052]
[1748536325525,0.22454894,106880.0,106870.0,0.68879844]
[1748536325956,0.22454894,106880.0,106870.0,0.69379844]
[1748536326431,0.22454894,106880.0,106870.0,0.68444189]
[1748536326862,0.22454894,106880.0,106870.0,0.69379844]
[1748536327782,0.20583804,106880.0,106870.0,0.14478804]
[1748536327999,0.20583804,106880.0,106870.0,0.63568857]
[1748536328211,0.20583804,106880.0,106870.0,0.64504564]
[1748536328434,0.20583804,106880.0,106870.0,0.65440262]
[1748536328885,0.20083804,106880.0,106870.0,0.65440262]
[1748536329108,0.20083804,106880.0,106870.0,0.66375952]
[1748536329762,0.20083804,106880.0,106870.0,0.65440262]
[1748536329995,0.20083804,106880.0,106870.0,0.66375952]
[1748536330219,0.20083769,106880.0,106870.0,0.69635952]
[1748536330444,0.21019397,106880.0,106870.0,0.70571633]
[1748536330666,0.21019397,106880.0,106870.0,0.66375952]
[1748536330898,0.21019397,106880.0,106870.0,0.3693595]
[1748536331116,0.21019397,106880.0,106870.0,0.6637595]
[1748536331336,0.21019397,106880.0,106870.0,0.67311631]
[1748536331588,0.20083769,106880.0,106870.0,0.67311587]
[1748536331823,0.20083769,106880.0,106870.0,0.6637588]
[1748536332051,0.20083769,106880.0,106870.0,0.65440208]
[1748536332513,0.20083769,106880.0,106870.0,0.43918814]
[1748536332749,0.20083769,106880.0,106870.0,0.11358814]
[1748536332988,0.19148185,106880.0,106870.0,0.09904729]
[1748536333217,0.22378185,106880.0,106870.0,0.00799334]
[1748536333494,0.25688185,106880.0,106870.0,0.00799334]
[1748536333738,0.34932185,106880.0,106870.0,0.005]
[1748536334223,0.34932185,106880.0,106870.0,0.29936]
[1748536334460,0.34932185,106880.0,106870.0,0.005]
[1748536334684,0.34932185,106880.0,106870.0,0.29936]
[1748536336100,0.4403758,106880.0,106870.0,0.005]
[1748536336366,0.7803758,106880.0,106870.0,0.005]
[1748536336608,0.7803758,106880.0,106870.0,0.29936]
[1748536338200,0.7803758,106880.0,106870.0,0.005]
[1748536338420,0.7803758,106880.0,106870.0,0.29936]
[1748536338892,0.7803758,106880.0,106870.0,0.005]
[1748536339124,0.7803758,106880.0,106870.0,0.29936]
[1748536339379,0.7803758,106880.0,106870.0,0.30812241]
[1748536339611,0.7803758,106880.0,106870.0,0.29936]
[1748536341248,1.1845358,106880.0,106870.0,0.005]
[1748536341472,0.59760023,106870.0,106860.0,0.29440921]
[1748536341695,0.68865418,106870.0,106860.0,0.29440921]
[1748536341912,1.17655418,106870.0,106860.0,4.921e-05]
[1748536342330,0.68865418,106870.0,106860.0,4.921e-05]
[1748536342996,0.75284854,106870.0,106860.0,4.921e-05]
[1748536343208,0.75284854,106870.0,106860.0,0.00098325]
[1748536343427,0.75284854,106870.0,106850.0,4e-05]
[1748536343428,0.25991863,106860.0,106850.0,4e-05]
[1748536343652,0.50766075,106860.0,106850.0,0.00018735]
[1748536343886,0.59993701,106850.0,106840.0,4e-05]
[1748536344115,0.59993701,106850.0,106800.0,0.0748798]
[1748536344116,0.2693726,106810.0,106800.0,0.0748798]
[1748536344344,0.3618526,106810.0,106800.0,0.0748798]
[1748536344577,0.3618526,106810.0,106800.0,0.36928899]
[1748536344783,0.3618526,106810.0,106800.0,0.07492899]
[1748536344996,0.3618526,106810.0,106800.0,0.36928899]
[1748536345711,0.3628526,106810.0,106800.0,0.29444919]
[1748536346180,0.3638526,106810.0,106800.0,0.29444919]
[1748536347087,0.37323833,106810.0,106800.0,0.30318764]
[1748536347312,0.37323833,106810.0,106800.0,0.29444919]
[1748536347996,0.80429228,106810.0,106800.0,8.919e-05]
[1748536348227,0.80429228,106810.0,106800.0,0.29448919]
[1748536348460,0.80429228,106810.0,106800.0,8.919e-05]
[1748536348679,0.80429228,106810.0,106800.0,0.29448919]
[1748536349351,0.80429228,106810.0,106800.0,0.29452919]
[1748536349823,0.80429228,106810.0,106800.0,8.919e-05]
[1748536350064,0.80429228,106810.0,106800.0,0.29452919]
[1748536351519,0.58815833,106810.0,106800.0,8.919e-05]
[1748536351786,0.21735833,106810.0,106800.0,8.919e-05]
[1748536352025,0.29101062,106810.0,106800.0,0.03228919]
[1748536352257,0.28164838,106810.0,106800.0,0.03228919]
[1748536352490,0.29101062,106810.0,106800.0,0.31312122]
[1748536352748,0.22669646,106810.0,106800.0,0.45907896]
[1748536353047,0.22669646,106810.0,106800.0,0.4769391]
[1748536353048,0.21733475,106810.0,106800.0,0.4769391]
[1748536353259,0.20797277,106810.0,106800.0,0.46757604]
[1748536353470,0.19861062,106810.0,106800.0,0.38356215]
[1748536353687,0.18824838,106810.0,106800.0,0.17756975]
[1748536353906,0.18824838,106810.0,106800.0,0.03228919]
[1748536354116,0.18824838,106810.0,106800.0,0.29656919]
[1748536354547,0.18824838,106810.0,106800.0,0.00208919]
[1748536354760,0.18824838,106810.0,106800.0,0.29656919]
[1748536354977,0.18724838,106810.0,106800.0,0.29656919]
[1748536355188,0.18724838,106810.0,106800.0,0.29856919]
[1748536357596,0.18724838,106810.0,106800.0,0.32896919]
[1748536358271,0.18724838,106810.0,106800.0,0.00408919]
[1748536358520,0.18724838,106810.0,106800.0,0.29856919]
[1748536358971,0.24964838,106810.0,106800.0,0.29856919]
[1748536359437,0.24964838,106810.0,106800.0,0.30728369]
[1748536359673,0.24964838,106810.0,106800.0,0.30728376]
[1748536359902,0.27968838,106810.0,106800.0,0.30728376]
[1748536360129,0.27968838,106810.0,106800.0,0.29856919]
[1748536360357,0.27968838,106810.0,106800.0,0.30728458]
[1748536360823,0.27968838,106810.0,106800.0,0.01280452]
[1748536361065,0.27968838,106810.0,106800.0,0.30728452]
[1748536361286,0.18724838,106810.0,106800.0,0.30728455]
[1748536361514,0.27968838,106810.0,106800.0,0.30728455]
[1748536361962,0.27968838,106810.0,106800.0,0.30732595]
[1748536362396,0.27968838,106810.0,106800.0,0.30732597]
[1748536362611,0.27968838,106810.0,106800.0,0.30732744]
[1748536362828,0.27968838,106810.0,106800.0,0.30732743]
[1748536363052,0.27968838,106810.0,106800.0,0.29860919]
[1748536363521,0.18724838,106810.0,106800.0,0.30732743]
[1748536363741,0.27968838,106810.0,106800.0,0.29860919]
[1748536363964,0.30998838,106810.0,106800.0,0.00412919]
[1748536364200,0.34118838,106810.0,106800.0,0.29860919]
[1748536364702,0.34118838,106810.0,106800.0,0.00412919]
[1748536364966,0.77224233,106810.0,106800.0,0.29860919]
[1748536366088,0.77224233,106810.0,106800.0,0.00412919]
[1748536367173,0.19662903,106800.0,106790.0,0.29958583]
[1748536367413,0.25862903,106800.0,106790.0,0.30845334]
[1748536367843,0.25862903,106800.0,106790.0,0.29973353]
[1748536368273,0.25862903,106800.0,106790.0,0.30273353]
[1748536369216,0.25962903,106800.0,106790.0,0.30573353]
[1748536370778,0.25962903,106800.0,106790.0,0.01125353]
[1748536371010,0.35068298,106800.0,106790.0,0.01125353]
[1748536371720,0.32008298,106800.0,106790.0,0.01125353]
[1748536374745,0.28868298,106800.0,106790.0,0.01125353]
[1748536374963,0.38112298,106800.0,106790.0,0.01125353]
[1748536375603,0.41342298,106800.0,106790.0,0.01125353]
[1748536376271,0.44512298,106800.0,106790.0,0.30573353]
[1748536376933,0.44412298,106800.0,106790.0,0.00825353]
[1748536377148,0.44412298,106800.0,106790.0,0.30473353]
[1748536377802,0.44412298,106800.0,106790.0,0.30173353]
[1748536378090,0.44412298,106800.0,106790.0,0.30273353]
[1748536378521,0.44412298,106800.0,106790.0,0.00825353]
[1748536379588,0.78412298,106800.0,106790.0,0.00825353]
[1748536380244,0.78412298,106800.0,106790.0,0.0031477]
[1748536380464,0.8766342,106800.0,106790.0,0.0031477]
[1748536380691,0.78412298,106800.0,106790.0,0.0031477]
[1748536381371,0.78412298,106800.0,106790.0,0.0021477]
[1748536381585,0.78512298,106800.0,106790.0,0.0001477]
[1748536381797,0.78612298,106800.0,106790.0,0.0001477]
[1748536382448,0.78612298,106800.0,106790.0,0.0001877]
[1748536385349,1.19064298,106800.0,106790.0,0.0001877]
[1748536385640,1.12660298,106800.0,106790.0,0.2947077]
[1748536385867,1.03554903,106800.0,106790.0,0.3278077]
[1748536387635,0.69554903,106800.0,106790.0,0.3278077]
[1748536391975,0.69554903,106800.0,106790.0,0.3603077]
[1748536392198,0.70491206,106800.0,106790.0,0.3603077]
[1748536392466,0.60314903,106800.0,106790.0,0.37484855]
[1748536392689,0.69554903,106800.0,106790.0,0.37484855]
[1748536392906,0.69354903,106800.0,106790.0,0.37484855]
[1748536393127,0.69354903,106800.0,106790.0,0.37684855]
[1748536393344,0.69354903,106800.0,106790.0,0.37784855]
[1748536393810,0.60114903,106800.0,106790.0,0.0362877]
[1748536394024,0.69354903,106800.0,106790.0,0.3308077]
[1748536394463,0.69354903,106800.0,106790.0,0.0362877]
[1748536394896,1.03354903,106800.0,106790.0,0.2976677]
[1748536395113,1.06594903,106800.0,106790.0,0.2976677]
[1748536396488,1.06494903,106800.0,106790.0,0.2976677]
[1748536400301,1.03254903,106800.0,106790.0,0.2976677]
[1748536400525,1.03254903,106800.0,106790.0,0.3276677]
[1748536400965,1.03254903,106800.0,106790.0,0.3587677]
[1748536403158,1.03254903,106800.0,106790.0,0.3276677]
[1748536403392,1.03254903,106800.0,106790.0,0.34220855]
[1748536405613,1.03254903,106800.0,106790.0,0.04772855]
[1748536405826,1.03254903,106800.0,106790.0,0.34220855]
[1748536408013,0.69254903,106800.0,106790.0,0.34220855]
[1748536408226,0.69254903,106800.0,106790.0,0.67037402]
[1748536408227,0.20499188,106800.0,106790.0,0.67037402]
[1748536408448,0.20499188,106800.0,106790.0,0.4643625]
[1748536409095,0.20499188,106800.0,106790.0,0.46735828]
[1748536409741,0.20499188,106800.0,106790.0,0.48188116]
[1748536409957,0.20499188,106800.0,106790.0,0.4643625]
[1748536410163,0.20499188,106800.0,106790.0,0.48188118]
[1748536410391,0.20499188,106800.0,106790.0,0.4643625]
[1748536412330,0.20449188,106800.0,106790.0,0.4643625]
[1748536413620,0.20449188,106800.0,106790.0,0.48188124]
[1748536414045,0.20449188,106800.0,106790.0,0.4818528]
[1748536414513,0.20449188,106800.0,106790.0,0.4643625]
[1748536414727,0.19512903,106800.0,106790.0,0.47372667]
[1748536414945,0.19512903,106800.0,106790.0,0.66400586]
[1748536415186,0.19512903,106800.0,106790.0,0.67336976]
[1748536415407,0.21385508,106800.0,106790.0,0.69209713]
[1748536415649,0.01872544,106800.0,106790.0,0.71895953]
[1748536415874,0.03745159,106800.0,106790.0,0.70146068]
[1748536416096,0.2247175,106800.0,106790.0,0.69209713]
[1748536416325,0.22471811,106800.0,106790.0,0.70023245]
[1748536416564,0.22471811,106800.0,106790.0,0.68273358]
[1748536416820,0.22471855,106800.0,106790.0,0.70959602]
[1748536417261,0.21535526,106800.0,106790.0,0.70146095]
[1748536417934,0.18724654,106820.0,106800.0,0.30185834]
[1748536418164,0.21533413,106810.0,106800.0,0.22989602]
[1748536418388,0.21533413,106810.0,106800.0,0.63588331]
[1748536418617,0.20597242,106810.0,106800.0,0.69848268]
[1748536418839,0.20597242,106810.0,106800.0,0.67798997]
[1748536419300,0.20697242,106810.0,106800.0,0.66862703]
[1748536419530,0.19761044,106810.0,106800.0,0.66862703]
[1748536419763,0.18824838,106810.0,106800.0,0.09463841]
[1748536419992,0.18824838,106810.0,106800.0,0.04584085]
[1748536420212,0.18824838,106810.0,106800.0,0.34028085]
[1748536420676,0.18824838,106810.0,106800.0,0.30898085]
[1748536421351,0.21964838,106810.0,106800.0,0.30894085]
[1748536421597,0.00936312,106800.0,106790.0,0.0314877]
[1748536421832,0.29191526,106800.0,106790.0,0.2945877]
[1748536422065,0.28898903,106800.0,106790.0,0.2945877]
[1748536422295,0.28898903,106800.0,106790.0,0.30912855]
[1748536422986,0.28898903,106800.0,106790.0,0.31212855]
[1748536424135,0.28898903,106800.0,106790.0,0.32962929]
[1748536425431,0.28902903,106800.0,106790.0,0.39252929]
[1748536425661,0.28902903,106800.0,106790.0,0.50107047]
[1748536425662,0.19662903,106800.0,106790.0,0.50107047]
[1748536425886,0.28902903,106800.0,106790.0,0.48358324]
[1748536427039,0.28902903,106800.0,106790.0,0.49294741]
[1748536427251,0.27966591,106800.0,106790.0,0.48358324]
[1748536428125,0.27966591,106800.0,106790.0,0.50106984]
[1748536428563,0.27966591,106800.0,106790.0,0.48358324]
[1748536429533,0.28902903,106800.0,106790.0,0.67086669]
[1748536429762,0.02808856,106800.0,106790.0,0.72580806]
[1748536429969,0.22471776,106800.0,106790.0,0.69895831]
[1748536430171,0.02808856,106800.0,106790.0,0.71787118]
[1748536430371,0.23408096,106800.0,106790.0,0.72086685]
[1748536430669,0.23408096,106800.0,106790.0,0.73835253]
[1748536430864,0.03745176,106800.0,106790.0,0.72086685]
[1748536431289,0.23408096,106800.0,106790.0,0.72086703]
[1748536431493,0.22471837,106800.0,106790.0,0.7115033]
[1748536431694,0.22471837,106800.0,106790.0,0.72898898]
[1748536431907,0.21535552,106800.0,106790.0,0.7115033]
[1748536432159,0.21535552,106800.0,106790.0,0.72086703]
[1748536432385,0.21535552,106800.0,106790.0,0.68977991]
[1748536432626,0.2059924,106800.0,106790.0,0.71662993]
[1748536432862,0.2059924,106800.0,106790.0,0.68959476]
[1748536433111,0.2059924,106800.0,106790.0,0.37646669]
[1748536433334,0.18726591,106800.0,106790.0,0.48358324]
[1748536433536,0.18726591,106800.0,106790.0,0.50106957]
[1748536433737,0.18726591,106800.0,106790.0,0.48358324]
[1748536433963,0.18726591,106800.0,106790.0,0.5010696]
[1748536434177,0.18726591,106800.0,106790.0,0.48358324]
[1748536434600,0.18726591,106800.0,106790.0,0.5010698]
[1748536434803,0.18726591,106800.0,106790.0,0.50106983]
[1748536435009,0.18726591,106800.0,106790.0,0.48358324]
[1748536435212,0.18726591,106800.0,106790.0,0.45088324]
[1748536435627,0.18726591,106800.0,106790.0,0.46843716]
[1748536435835,0.18726591,106800.0,106790.0,0.42068324]
[1748536436049,0.18726591,106800.0,106790.0,0.42064324]
[1748536436262,0.18726591,106800.0,106790.0,0.45194324]
[1748536436472,0.18726591,106800.0,106790.0,0.50269716]
[1748536436690,0.18726591,106800.0,106790.0,0.505693]
[1748536436939,0.18726591,106800.0,106790.0,0.50568134]
[1748536437155,0.18726591,106800.0,106790.0,0.45194324]
[1748536437617,0.18726591,106800.0,106790.0,0.45493912]
[1748536437852,0.18726591,106800.0,106790.0,0.47248136]
[1748536438081,0.18726591,106800.0,106790.0,0.45493912]
[1748536438335,0.18726591,106800.0,106790.0,0.47248139]
[1748536438777,0.18726591,106800.0,106790.0,0.47248138]
[1748536438998,0.18726591,106800.0,106790.0,0.45493912]
[1748536439646,0.18726591,106800.0,106790.0,0.45194324]
[1748536439869,0.21996591,106800.0,106790.0,0.03823094]
[1748536440089,0.18726591,106800.0,106790.0,0.31504844]
[1748536440303,0.18726591,106800.0,106790.0,0.32958929]
[1748536440509,0.18726591,106800.0,106790.0,0.34713287]
[1748536441382,0.18726591,106800.0,106790.0,0.34711714]
[1748536441794,0.18726591,106800.0,106790.0,0.34711716]
[1748536442328,0.18726591,106800.0,106790.0,0.34711779]
[1748536443155,0.18726591,106800.0,106790.0,0.05275779]
[1748536443384,0.25276591,106800.0,106790.0,0.05275864]
[1748536443612,0.25276591,106800.0,106790.0,0.34711864]
[1748536443844,0.25276591,106800.0,106790.0,0.32958929]
[1748536444057,0.25276591,106800.0,106790.0,0.34711897]
[1748536444265,0.25276591,106800.0,106790.0,0.32958929]
[1748536444482,0.25276591,106800.0,106790.0,0.34711901]
[1748536444948,0.22006591,106800.0,106790.0,0.34711901]
[1748536445154,0.22006591,106800.0,106790.0,0.32958929]
[1748536445359,0.22006591,106800.0,106790.0,0.34711747]
[1748536445773,0.18726591,106800.0,106790.0,0.05275733]
[1748536446223,0.18726591,106800.0,106790.0,0.34711733]
[1748536446658,0.18726591,106800.0,106790.0,0.34712033]
[1748536446869,0.21726591,106800.0,106790.0,0.34712033]
[1748536447346,0.21726591,106800.0,106790.0,0.05276033]
[1748536447562,0.21726591,106800.0,106790.0,0.32958929]
[1748536447779,0.21726591,106800.0,106790.0,0.34712194]
[1748536448265,0.18726591,106800.0,106790.0,0.32958929]
[1748536448488,0.18726591,106800.0,106790.0,0.34712358]
[1748536448711,0.27962591,106800.0,106790.0,0.37772358]
[1748536448965,0.18726591,106800.0,106790.0,0.37772358]
[1748536449194,0.27962591,106800.0,106790.0,0.08336308]
[1748536449433,0.27962591,106800.0,106790.0,0.34712308]
[1748536449671,0.27962591,106800.0,106790.0,0.34712302]
[1748536450081,0.31252591,106800.0,106790.0,0.03522929]
[1748536450342,0.31252591,106800.0,106790.0,0.34712435]
[1748536450569,0.31252591,106800.0,106790.0,0.34712459]
[1748536450994,0.34252591,106800.0,106790.0,0.34712578]
[1748536451209,0.31252591,106800.0,106790.0,0.34712583]
[1748536451413,0.31252591,106800.0,106790.0,0.3471258]
[1748536451618,0.31252591,106800.0,106790.0,0.34712577]
[1748536452055,0.31252591,106800.0,106790.0,0.34712567]
[1748536452487,0.31252591,106800.0,106790.0,0.05276567]
[1748536452732,0.34252591,106800.0,106790.0,0.34708642]
[1748536452942,0.34252591,106800.0,106790.0,0.34708643]
[1748536453157,0.34252591,106800.0,106790.0,0.34708652]
[1748536453372,0.34252591,106800.0,106790.0,0.34708717]
[1748536453592,0.34252591,106800.0,106790.0,0.34708743]
[1748536454024,0.34252591,106800.0,106790.0,0.3470859]
[1748536454451,0.31252591,106800.0,106790.0,0.3470858]
[1748536454854,0.31252591,106800.0,106790.0,0.3470854]
[1748536455156,0.34252591,106800.0,106790.0,0.34708539]
[1748536455377,0.34552591,106800.0,106790.0,0.32954929]
[1748536455596,0.34552591,106800.0,106790.0,0.34708539]
[1748536456008,0.34552591,106800.0,106790.0,0.05276539]
[1748536456215,0.34552591,106800.0,106790.0,0.34708543]
[1748536456422,0.34552591,106800.0,106790.0,0.34708544]
[1748536456634,0.34552591,106800.0,106790.0,0.02068844]
[1748536456855,0.43657986,106800.0,106790.0,0.03822509]
[1748536457072,0.43657986,106800.0,106790.0,0.33254558]
[1748536457718,0.43657986,106800.0,106790.0,0.33254219]
[1748536457942,0.43657986,106800.0,106790.0,0.31500844]
[1748536457943,0.25316591,106800.0,106790.0,0.31500844]
[1748536458160,0.31252591,106800.0,106790.0,0.34708299]
[1748536458589,0.31252591,106800.0,106790.0,0.34708185]
[1748536459030,0.31252591,106800.0,106790.0,0.32954929]
[1748536459449,0.31252591,106800.0,106790.0,0.34708199]
[1748536460447,0.31252591,106800.0,106790.0,0.32954929]
[1748536460791,0.31152591,106800.0,106790.0,0.32954929]
[1748536461022,0.31152591,106800.0,106790.0,0.3470829]
[1748536461383,0.31152591,106800.0,106790.0,0.32954929]
[1748536461565,0.31152591,106800.0,106790.0,0.3470829]
[1748536462134,0.31152591,106800.0,106790.0,0.34708333]
[1748536462337,0.21916591,106800.0,106790.0,0.32954929]
[1748536462551,0.21916591,106800.0,106790.0,0.34708333]
[1748536462787,0.31152591,106800.0,106790.0,0.34708333]
[1748536463943,0.31152591,106800.0,106790.0,0.32954929]
[1748536464160,0.31152591,106800.0,106790.0,0.34708412]
[1748536465237,0.31152591,106800.0,106790.0,0.34708443]
[1748536465452,0.31152591,106800.0,106790.0,0.34708441]
[1748536466295,0.31152591,106800.0,106790.0,0.34708479]
[1748536467296,0.31152591,106800.0,106790.0,0.34708918]
[1748536467726,0.31152591,106800.0,106790.0,0.32954929]
[1748536468190,0.27862591,106800.0,106790.0,0.34708948]
[1748536468897,0.27862591,106800.0,106790.0,0.34708949]
[1748536469276,0.27862591,106800.0,106790.0,0.37958949]
[1748536469972,0.27862591,106800.0,106790.0,0.37958977]
[1748536470430,0.27862591,106800.0,106790.0,0.34708977]
[1748536470653,0.27862591,106800.0,106790.0,0.38008977]
[1748536470947,0.27862591,106800.0,106790.0,0.38009015]
[1748536471507,0.27862591,106800.0,106790.0,0.38008961]
[1748536472863,0.27862591,106800.0,106790.0,0.38008813]
[1748536473076,0.18626591,106800.0,106790.0,0.38008813]
[1748536473487,0.27854591,106800.0,106790.0,0.38008813]
[1748536473713,0.18626591,106800.0,106790.0,0.38008813]
[1748536473948,0.04227422,106820.0,106810.0,0.05560309]
[1748536474221,0.05163523,106820.0,106810.0,1.30454374]
[1748536474435,0.05163505,106820.0,106810.0,0.71079885]
[1748536474650,0.07035777,106820.0,106810.0,0.69207446]